bitfinex-derivatives/quotes_ETHF0:USTF0_20240818
["timestamp","ask_amount","ask_price","bid_price","bid_amount"]
[1723964095881,14.03370266,2608.1,2608.0,0.60256609]
[1723964096075,1.34185,2608.0,2607.8,1.3419]
[1723964096268,5.21818885,2607.9,2607.8,1.3419]
[1723964096578,9.05258885,2607.9,2607.8,1.3419]
[1723964098077,7.0422,2607.9,2607.8,2.3079]
[1723964098465,3.8344,2607.9,2607.8,2.3079]
[1723964098666,5.34122807,2607.9,2607.8,2.3079]
[1723964098876,3.8344,2607.9,2607.8,2.3079]
[1723964099261,5.3409619,2607.9,2607.8,2.3079]
[1723964100270,1.5065619,2607.9,2607.8,2.3079]
[1723964100469,2.2433619,2608.0,2607.9,1.34188]
[1723964104585,6.0777619,2608.0,2607.9,1.34188]
[1723964107275,6.0777619,2608.0,2607.8,2.30791]
[1723964107276,7.4196219,2608.0,2607.8,2.30791]
[1723964107492,8.5487619,2607.9,2607.8,1.34191]
[1723964107871,8.5487619,2607.9,2607.7,2.30795]
[1723964107872,13.5487619,2607.9,2607.7,2.30795]
[1723964108072,4.1951,2607.8,2607.7,2.30795]
[1723964108576,10.7016619,2607.8,2607.5,1.34206]
[1723964108779,3.2078,2607.6,2607.5,1.34206]
[1723964109079,4.71314469,2607.6,2607.5,1.34206]
[1723964109279,10.61068469,2607.6,2607.4,2.30811]
[1723964109479,9.26864469,2607.6,2607.5,1.34209]
[1723964109883,7.7633,2607.6,2607.5,1.34209]
[1723964110477,4.5555,2607.6,2607.5,1.34209]
[1723964110977,4.5555,2607.6,2607.5,2.30809]
[1723964114280,0.7203,2607.6,2607.5,2.30809]
[1723964114486,5.07384469,2607.8,2607.7,1.34199]
[1723964114676,3.5685,2607.8,2607.7,2.30799]
[1723964114981,7.4029,2607.8,2607.7,2.30799]
[1723964115497,3.5685,2607.8,2607.7,2.30799]
[1723964118188,7.4029,2607.8,2607.7,2.30799]
[1723964118384,3.5685,2607.8,2607.7,2.30799]
[1723964118587,7.4029,2607.8,2607.7,2.30799]
[1723964119882,7.4029,2607.8,2607.7,1.34199]
[1723964120784,1.34201,2607.7,2607.5,0.966]
[1723964121085,1.34199,2607.7,2607.6,1.34204]
[1723964121486,5.17719,2607.7,2607.6,1.34204]
[1723964121978,5.17719,2607.7,2607.5,2.30806]
[1723964122179,4.5345,2607.8,2607.4,0.966]
[1723964122180,5.17724,2607.6,2607.4,0.966]
[1723964122387,0.7444,2607.5,2607.4,2.30811]
[1723964122681,1.1072,2607.5,2607.4,2.30811]
[1723964122881,4.9424,2607.5,2607.4,2.30811]
[1723964124084,1.34218,2607.4,2607.1,3.2078]
[1723964124285,1.34218,2607.4,2607.3,1.34219]
[1723964124679,5.17738,2607.4,2607.3,1.34219]
[1723964125182,3.8352,2607.4,2607.3,1.34219]
[1723964125380,5.17734,2607.4,2607.3,1.34219]
[1723964125888,3.8352,2607.4,2607.3,1.34219]
[1723964126205,3.8352,2607.4,2607.3,2.30819]
[1723964126802,1.1072,2607.5,2607.4,1.34214]
[1723964127287,6.28449,2607.5,2607.4,1.34214]
[1723964127887,6.28449,2607.5,2607.3,2.30816]
[1723964128289,2.44929,2607.5,2607.3,2.30816]
[1723964128488,4.9424,2607.5,2607.4,1.34214]
[1723964128691,4.9424,2607.5,2607.4,2.30814]
[1723964128692,1.1072,2607.5,2607.4,2.30814]
[1723964133096,1.50534469,2607.6,2607.5,1.34209]
[1723964133396,4.71314469,2607.7,2607.6,1.34204]
[1723964133597,3.2078,2607.7,2607.6,1.34204]
[1723964133793,3.2078,2607.7,2607.6,1.69964]
[1723964134197,4.71314469,2607.7,2607.6,1.69964]
[1723964134890,1.50534469,2607.8,2607.7,1.34199]
[1723964135295,1.50534469,2607.8,2607.7,2.30799]
[1723964136902,0.3564,2607.9,2607.8,1.34194]
[1723964137100,1.86274132,2607.9,2607.8,1.34194]
[1723964137295,5.69714132,2607.9,2607.8,1.34194]
[1723964138505,4.1908,2607.9,2607.8,1.34194]
[1723964139606,0.3564,2607.9,2607.8,1.34194]
[1723964140203,4.1908,2607.9,2607.8,1.34194]
[1723964140424,5.69714132,2607.9,2607.8,1.34194]
[1723964140709,1.86274132,2607.9,2607.8,1.34194]
[1723964140904,5.69714132,2607.9,2607.8,1.34194]
[1723964141109,1.86274132,2607.9,2607.8,1.34194]
[1723964141321,5.69714132,2607.9,2607.8,1.34194]
[1723964141813,1.86274132,2607.9,2607.8,1.34194]
[1723964142013,5.69714132,2607.9,2607.8,1.34194]
[1723964142222,1.86274132,2607.9,2607.8,1.34194]
[1723964142426,5.69714132,2607.9,2607.8,1.34194]
[1723964142620,6.20118885,2607.9,2607.8,1.34194]
[1723964143015,4.1908,2607.9,2607.8,1.34194]
[1723964144511,6.20118885,2607.9,2607.8,1.34194]
[1723964144713,4.1908,2607.9,2607.8,1.34194]
[1723964145111,5.69757393,2607.9,2607.8,1.34194]
[1723964145726,1.8631587,2607.9,2607.8,1.34194]
[1723964146823,1.8631587,2607.9,2607.8,1.69694]
[1723964147620,0.3564,2607.9,2607.8,1.69694]
[1723964147816,1.86317811,2607.9,2607.8,1.69694]
[1723964148034,0.3564,2607.9,2607.8,1.69694]
[1723964148632,0.3564,2607.9,2607.8,1.34194]
[1723964153425,1.50694675,2607.9,2607.8,3.64988]
[1723964153734,4.71468726,2608.0,2607.9,2.68376]
[1723964154028,4.71468726,2608.0,2607.9,3.43076]
[1723964154223,4.71468726,2608.0,2607.9,3.79266]
[1723964154931,3.2078,2608.0,2607.9,3.79266]
[1723964155131,4.71468726,2608.0,2607.9,3.79266]
[1723964155424,3.2078,2608.0,2607.9,3.79266]
[1723964156128,4.72329217,2608.1,2608.0,1.34183]
[1723964156326,1.51549217,2608.1,2608.0,3.64966]
[1723964156631,0.00860491,2608.1,2608.0,3.64966]
[1723964156952,0.00860491,2608.1,2608.0,4.65266202]
[1723964157424,0.00860491,2608.1,2608.0,3.64966]
[1723964158431,0.00860491,2608.1,2608.0,7.48406]
[1723964158622,1.86698726,2608.4,2608.0,7.48406]
[1723964158623,1.86698726,2608.4,2608.2,1.34169]
[1723964158822,0.3601,2608.4,2608.3,2.65778]
[1723964159126,0.3601,2608.4,2608.3,3.01978]
[1723964159722,0.36411467,2608.4,2608.3,3.01978]
[1723964160528,0.36411467,2608.4,2608.3,2.66968]
[1723964160733,0.36411467,2608.4,2608.3,2.30768]
[1723964161230,0.00401467,2608.4,2608.3,2.30768]
[1723964161431,0.00401467,2608.4,2608.3,2.66838]
[1723964161726,0.00401467,2608.4,2608.3,1.34168]
[1723964161946,0.00401467,2608.4,2608.3,2.30768]
[1723964162236,0.00401467,2608.4,2608.3,6.58362612]
[1723964163429,0.00401467,2608.4,2608.3,11.75890612]
[1723964167533,0.00401467,2608.4,2608.3,10.41722612]
[1723964167841,0.00401467,2608.4,2608.3,2.30768]
[1723964168537,0.00401467,2608.4,2608.2,1.34169]
[1723964168538,8.01141467,2608.4,2608.2,1.34169]
[1723964168751,1.6807,2608.3,2608.2,1.34169]
[1723964171443,5.5143,2608.3,2608.2,1.34169]
[1723964173140,8.7221,2608.3,2608.2,1.34169]
[1723964174032,5.5143,2608.3,2608.2,1.34169]
[1723964174336,8.7221,2608.3,2608.2,1.34169]
[1723964175138,4.8885,2608.3,2608.2,1.34169]
[1723964175440,8.7221,2608.3,2608.2,1.34169]
[1723964177139,7.7561,2608.3,2608.2,1.34169]
[1723964180482,7.7561,2608.3,2608.2,1.71909]
[1723964180946,7.7561,2608.3,2608.2,1.34169]
[1723964181651,4.5483,2608.3,2608.2,1.34169]
[1723964182347,4.9198,2608.3,2608.2,1.34169]
[1723964187250,7.39268726,2608.3,2608.2,1.34169]
[1723964187441,10.60048726,2608.3,2608.2,1.34169]
[1723964188346,9.0936,2608.3,2608.2,1.34169]
[1723964189749,11.10398885,2608.3,2608.2,1.34169]
[1723964189952,9.0936,2608.3,2608.2,1.34169]
[1723964191551,10.43528,2608.3,2608.1,1.34749738]
[1723964191756,1.50635786,2608.2,2608.1,1.34753738]
[1723964191954,6.68248786,2608.2,2608.1,1.34753738]
[1723964192651,3.8344,2608.2,2608.1,1.34753738]
[1723964193946,5.17613,2608.2,2608.1,0.00575738]
[1723964194251,6.14213,2608.2,2608.1,0.00575738]
[1723964194442,8.65034775,2608.2,2608.1,0.00575738]
[1723964200457,11.85814775,2608.2,2608.1,0.00575738]
[1723964201057,13.65034775,2608.2,2608.1,0.00575738]
[1723964201554,16.85814775,2608.2,2608.1,0.00575738]
[1723964202151,13.65034775,2608.2,2608.1,0.00575738]
[1723964202367,16.85814775,2608.2,2608.1,0.00575738]
[1723964203754,1.34183,2608.1,2607.9,1.34185]
[1723964203960,2.97527325,2608.0,2607.9,1.34185]
[1723964204264,1.3415,2608.0,2607.9,1.34185]
[1723964204455,6.51773,2608.0,2607.9,1.34185]
[1723964205563,1.34189,2607.9,2607.7,0.00575738]
[1723964205757,5.94697325,2607.9,2607.8,1.34188]
[1723964206059,10.74737325,2607.9,2607.8,1.34188]
[1723964207357,12.08925325,2607.9,2607.7,1.34771738]
[1723964207559,2.00927325,2607.8,2607.7,1.34771738]
[1723964207958,5.84367325,2607.8,2607.7,1.34771738]
[1723964209857,5.84367325,2607.8,2607.7,0.00575738]
[1723964209858,7.18561325,2607.8,2607.7,0.00575738]
[1723964211255,7.18561325,2607.8,2607.7,1.34774738]
[1723964211762,5.84367325,2607.8,2607.7,1.34774738]
[1723964211958,3.8344,2607.8,2607.7,1.34774738]
[1723964212359,5.34012397,2607.8,2607.7,1.34774738]
[1723964212755,8.54792397,2607.8,2607.7,1.34774738]
[1723964213159,4.71352397,2607.8,2607.7,1.34774738]
[1723964213566,5.34012397,2607.8,2607.7,1.34774738]
[1723964213754,8.54792397,2607.8,2607.7,1.34774738]
[1723964214856,5.34012397,2607.8,2607.7,1.34774738]
[1723964215569,1.50572397,2607.8,2607.7,1.34774738]
[1723964216763,5.04709325,2607.9,2607.7,1.34774738]
[1723964217267,8.88149325,2607.9,2607.8,0.3604]
[1723964218068,1.34194,2607.8,2607.7,1.34774738]
[1723964218370,4.54974,2607.8,2607.7,1.34774738]
[1723964218566,8.38414,2607.8,2607.7,1.34774738]
[1723964219064,10.39159071,2607.8,2607.7,1.34774738]
[1723964219561,8.38414,2607.8,2607.7,1.34774738]
[1723964219955,10.39159071,2607.8,2607.7,1.34774738]
[1723964220456,8.38414,2607.8,2607.7,1.34774738]
[1723964220656,8.38414,2607.8,2607.7,0.00575738]
[1723964222472,4.54974,2607.8,2607.7,0.00575738]
[1723964222654,4.54974,2607.8,2607.7,1.34774738]
[1723964223964,4.54974,2607.8,2607.7,0.00575738]
[1723964225555,4.54974,2607.8,2607.7,1.34774738]
[1723964228475,6.55719071,2607.8,2607.7,0.00575738]
[1723964228869,6.55719071,2607.8,2607.7,1.34774738]
[1723964229566,3.34939071,2607.8,2607.7,1.34774738]
[1723964229765,6.55719071,2607.8,2607.7,1.34774738]
[1723964230361,3.34939071,2607.8,2607.7,1.34774738]
[1723964230571,6.55719071,2607.8,2607.7,1.34774738]
[1723964231370,3.34939071,2607.8,2607.7,1.34774738]
[1723964231563,6.55719071,2607.8,2607.7,1.34774738]
[1723964231967,6.55719071,2607.8,2607.7,0.00575738]
[1723964232769,6.55719071,2607.8,2607.7,1.34774738]
[1723964234175,4.54974,2607.8,2607.7,1.34774738]
[1723964234372,6.55863061,2607.8,2607.7,1.34774738]
[1723964234677,4.54974,2607.8,2607.7,1.34774738]
[1723964236083,3.2078,2607.8,2607.7,1.34774738]
[1723964236381,5.21687239,2607.8,2607.7,1.34774738]
[1723964238173,5.51574,2607.8,2607.7,0.00575738]
[1723964238475,7.05795775,2607.8,2607.7,0.00575738]
[1723964238676,4.54974,2607.8,2607.7,0.00575738]
[1723964239582,4.54974,2607.8,2607.7,1.34774738]
[1723964240903,1.34194,2607.8,2607.7,1.34774738]
[1723964241075,4.54974,2607.8,2607.7,1.34774738]
[1723964241298,4.54974,2607.8,2607.7,0.00575738]
[1723964241475,4.54974,2607.8,2607.7,1.34774738]
[1723964241476,7.05795775,2607.8,2607.7,1.34774738]
[1723964242582,3.85015775,2607.8,2607.7,1.34774738]
[1723964243180,7.05795775,2607.8,2607.7,1.34774738]
[1723964243890,3.85015775,2607.8,2607.7,0.00575738]
[1723964244094,7.05795775,2607.8,2607.7,1.34774738]
[1723964245978,7.05795775,2607.8,2607.7,0.00575738]
[1723964246181,4.54974,2607.8,2607.7,0.00575738]
[1723964251986,1.34194,2607.8,2607.7,0.00575738]
[1723964252194,4.54974,2607.8,2607.7,0.00575738]
[1723964255588,1.34194,2607.8,2607.7,0.00575738]
[1723964255787,4.54974,2607.8,2607.7,0.00575738]
[1723964257397,4.54974,2607.8,2607.7,1.34774738]
[1723964257613,3.2078,2607.8,2607.7,1.34774738]
[1723964257809,4.54974,2607.8,2607.7,0.00575738]
[1723964262109,1.34194,2607.8,2607.7,0.00575738]
[1723964262312,4.54974,2607.8,2607.7,0.00575738]
[1723964267813,8.9015413,2607.8,2607.7,0.00575738]
[1723964268220,8.9015413,2607.8,2607.1,1.00300202]
[1723964268221,1.34224,2607.2,2607.1,1.00300202]
[1723964268411,8.03219626,2607.2,2607.0,1.00300202]
[1723964268608,3.70927988,2607.1,2606.9,1.36790202]
[1723964268814,1.6972,2607.1,2607.0,1.34235]
[1723964269639,3.70870458,2607.1,2607.0,1.34235]
[1723964269810,1.6972,2607.1,2607.0,1.34235]
[1723964270024,3.70875167,2607.1,2607.0,1.34235]
[1723964270222,1.6972,2607.1,2607.0,1.34235]
[1723964270515,3.70815695,2607.1,2606.9,0.3649]
[1723964270714,3.70815695,2607.1,2606.9,1.70726]
[1723964271621,3.70815695,2607.1,2607.0,1.34235]
[1723964271818,3.70815695,2607.1,2606.9,0.3649]
[1723964272022,3.70815695,2607.1,2607.0,1.34235]
[1723964272412,3.70815695,2607.1,2607.0,5.17835]
[1723964272618,3.70815695,2607.1,2607.0,3.836]
[1723964273008,3.70815695,2607.1,2607.0,5.17835]
[1723964273214,3.33165695,2607.1,2607.0,5.17835]
[1723964274615,1.3207,2607.1,2607.0,5.17835]
[1723964274917,3.33165695,2607.1,2607.0,1.34235]
[1723964276009,1.3207,2607.1,2607.0,1.34235]
[1723964276321,3.33165695,2607.1,2607.0,1.34235]
[1723964276517,1.3207,2607.1,2607.0,1.34235]
[1723964276724,2.82735356,2607.1,2607.0,1.34235]
[1723964277022,1.3207,2607.1,2607.0,1.34235]
[1723964277646,2.82724584,2607.1,2607.0,1.34235]
[1723964277826,1.3207,2607.1,2607.0,1.34235]
[1723964278622,2.82710277,2607.1,2607.0,1.34235]
[1723964279717,5.68020277,2607.2,2607.1,1.3423]
[1723964281225,4.1738,2607.2,2607.1,1.3423]
[1723964281609,5.67997685,2607.2,2607.1,1.3423]
[1723964281813,4.1738,2607.2,2607.1,1.3423]
[1723964282227,5.67994695,2607.2,2607.1,1.3423]
[1723964283222,4.1738,2607.2,2607.1,1.3423]
[1723964285019,6.18475695,2607.2,2607.1,1.3423]
[1723964285720,4.1738,2607.2,2607.1,1.3423]
[1723964288016,6.18475695,2607.2,2607.1,1.3423]
[1723964288217,4.1738,2607.2,2607.1,1.3423]
[1723964288926,0.966,2607.2,2607.1,1.3423]
[1723964289316,4.1738,2607.2,2607.1,1.3423]
[1723964290724,6.18475695,2607.2,2607.1,1.3423]
[1723964292625,7.52701695,2607.2,2607.0,1.34232]
[1723964292830,2.84952841,2607.1,2607.0,1.34232]
[1723964293221,6.05732841,2607.1,2607.0,1.34232]
[1723964294225,6.05735561,2607.1,2607.0,1.34232]
[1723964295431,4.5512,2607.1,2607.0,1.34232]
[1723964298230,5.89352,2607.1,2606.9,1.34236]
[1723964298438,2.82130292,2607.0,2606.9,1.34236]
[1723964299629,4.16365292,2607.0,2606.9,1.34236]
[1723964300628,2.82130292,2607.0,2606.9,1.34236]
[1723964300823,4.16365292,2607.0,2606.9,1.34236]
[1723964302327,1.3424,2606.9,2606.8,0.00575738]
[1723964302534,3.71845695,2606.9,2606.8,0.00575738]
[1723964302833,1.7075,2606.9,2606.8,0.00575738]
[1723964304043,0.3651,2606.9,2606.8,0.00575738]
[1723964304235,1.3311,2606.9,2606.8,1.34820738]
[1723964304533,0.966,2606.9,2606.8,1.34820738]
[1723964305841,4.1738,2606.9,2606.8,1.34820738]
[1723964308146,0.966,2606.9,2606.8,1.34820738]
[1723964308443,4.1738,2606.9,2606.8,1.34820738]
[1723964308636,6.1826455,2606.9,2606.8,1.34820738]
[1723964308837,2.9748455,2606.9,2606.8,1.34820738]
[1723964309038,6.1826455,2606.9,2606.8,1.34820738]
[1723964312449,4.1738,2606.9,2606.8,1.34820738]
[1723964313646,6.68995626,2606.9,2606.8,1.34820738]
[1723964319047,3.48215626,2606.9,2606.8,1.34820738]
[1723964319247,6.68995626,2606.9,2606.8,1.34820738]
[1723964320053,3.48215626,2606.9,2606.8,1.34820738]
[1723964320350,6.68995626,2606.9,2606.8,1.34820738]
[1723964320858,3.48215626,2606.9,2606.8,1.34820738]
[1723964321263,6.68995626,2606.9,2606.8,1.34820738]
[1723964322446,4.1738,2606.9,2606.8,1.34820738]
[1723964322649,6.68995626,2606.9,2606.8,1.34820738]
[1723964322845,4.1738,2606.9,2606.8,1.34820738]
[1723964325068,4.1738,2606.9,2606.8,0.00575738]
[1723964325250,4.551,2606.9,2606.8,0.00575738]
[1723964325451,7.06715626,2606.9,2606.8,0.00575738]
[1723964325654,8.40955626,2606.9,2606.8,0.00575738]
[1723964326559,7.06715626,2606.9,2606.8,0.00575738]
[1723964326753,8.40955626,2606.9,2606.8,0.00575738]
[1723964327257,7.06715626,2606.9,2606.8,1.34820738]
[1723964327851,3.85935626,2606.9,2606.8,0.00575738]
[1723964328261,8.40955626,2606.9,2606.8,0.00575738]
[1723964330453,5.8934,2606.9,2606.8,0.00575738]
[1723964330654,11.0718,2606.9,2606.8,0.00575738]
[1723964331158,14.09118751,2606.9,2606.8,0.00575738]
[1723964331353,11.0718,2606.9,2606.8,0.00575738]
[1723964334254,9.7294,2606.9,2606.8,0.00575738]
[1723964336367,5.5162,2606.9,2606.8,0.00575738]
[1723964336564,5.8746,2606.9,2606.8,0.00575738]
[1723964342569,4.5322,2606.9,2606.8,0.00575738]
[1723964342961,5.8746,2606.9,2606.8,0.00575738]
[1723964351172,4.5322,2606.9,2606.8,0.00575738]
[1723964351370,5.8746,2606.9,2606.8,0.00575738]
[1723964354279,2.6668,2606.9,2606.8,0.00575738]
[1723964354469,5.8746,2606.9,2606.8,0.00575738]
[1723964362997,2.6668,2606.9,2606.8,0.00575738]
[1723964363194,5.8746,2606.9,2606.8,0.00575738]
[1723964365792,8.89398751,2606.9,2606.8,0.00575738]
[1723964367598,5.8746,2606.9,2606.8,0.00575738]
[1723964368504,8.89398751,2606.9,2606.8,0.00575738]
[1723964368702,5.8746,2606.9,2606.8,0.00575738]
[1723964370998,2.6668,2606.9,2606.8,0.00575738]
[1723964371201,5.8746,2606.9,2606.8,0.00575738]
[1723964374002,4.1738,2606.9,2606.8,0.00575738]
[1723964375600,2.3084,2606.9,2606.8,0.00575738]
[1723964375897,5.5162,2606.9,2606.8,0.00575738]
[1723964378303,2.3084,2606.9,2606.8,0.00575738]
[1723964378693,5.5162,2606.9,2606.8,0.00575738]
[1723964380214,8.53558751,2606.9,2606.8,0.00575738]
[1723964380907,5.5162,2606.9,2606.8,0.00575738]
[1723964381297,8.53558751,2606.9,2606.8,0.00575738]
[1723964383310,5.5162,2606.9,2606.8,0.00575738]
[1723964383504,4.1738,2606.9,2606.8,0.00575738]
[1723964383710,5.5162,2606.9,2606.8,0.00575738]
[1723964384713,8.53558751,2606.9,2606.8,0.00575738]
[1723964385707,5.5162,2606.9,2606.8,0.00575738]
[1723964391611,2.3084,2606.9,2606.8,0.00575738]
[1723964391917,5.5162,2606.9,2606.8,0.00575738]
[1723964393612,2.3084,2606.9,2606.8,0.00575738]
[1723964393814,5.5162,2606.9,2606.8,0.00575738]
[1723964394507,5.8653,2606.9,2606.8,0.00575738]
[1723964396115,3.88890485,2607.1,2607.0,1.34235]
[1723964396116,3.01938751,2607.1,2607.0,1.34235]
[1723964396307,3.01938751,2607.1,2606.8,3.84175738]
[1723964396308,0.966,2607.2,2607.1,1.3423]
[1723964396511,3.48147779,2607.2,2607.1,1.3423]
[1723964397319,0.966,2607.2,2607.1,1.3423]
[1723964397739,3.48147779,2607.2,2607.1,1.3423]
[1723964398519,0.966,2607.2,2607.1,1.3423]
[1723964398919,3.48147779,2607.2,2607.1,1.3423]
[1723964399115,0.966,2607.2,2607.1,1.3423]
[1723964399419,2.97665257,2607.2,2607.1,1.3423]
[1723964399621,2.97664775,2607.2,2607.1,1.3423]
[1723964399918,0.966,2607.2,2607.1,1.3423]
[1723964400115,2.97666998,2607.2,2607.1,1.3423]
[1723964400417,2.97666998,2607.2,2607.0,1.71322]
[1723964400620,2.97666998,2607.1,2607.0,1.71322]
[1723964401034,0.966,2607.1,2607.0,5.54922]
[1723964401319,0.966,2607.1,2607.0,5.90402]
[1723964401320,2.47368605,2607.1,2607.0,5.90402]
[1723964401556,0.966,2607.1,2607.0,5.90402]
[1723964402209,2.47348356,2607.1,2607.0,5.90402]
[1723964402649,2.47344848,2607.1,2607.0,5.90402]
[1723964402824,0.966,2607.1,2607.0,5.90402]
[1723964403016,4.68296998,2607.1,2607.0,4.2069]
[1723964403222,5.41326998,2607.1,2607.0,3.836]
[1723964403426,5.41326998,2607.1,2606.9,1.71735]
[1723964403624,1.50750765,2607.0,2606.9,1.71735]
[1723964404229,1.50750765,2607.0,2606.9,5.55335]
[1723964406709,1.50750765,2607.0,2606.9,5.92595]
[1723964406925,3.56780765,2607.1,2607.0,1.34235]
[1723964407429,3.56780765,2607.1,2607.0,5.17835]
[1723964409324,2.0603,2607.1,2607.0,5.17835]
[1723964411020,5.2681,2607.1,2607.0,5.17835]
[1723964411223,6.77488828,2607.1,2607.0,5.17835]
[1723964412633,3.56708828,2607.1,2607.0,5.17835]
[1723964412827,5.2681,2607.1,2607.0,5.17835]
[1723964413049,3.2078,2607.1,2607.0,5.17835]
[1723964414532,3.2078,2607.1,2607.0,7.4867]
[1723964414730,3.2078,2607.1,2607.0,8.48970202]
[1723964417515,3.2078,2607.1,2607.0,7.4867]
[1723964417926,3.2078,2607.1,2607.0,8.48970202]
[1723964418327,0.00575738,2607.3,2607.2,1.34224]
[1723964418718,0.00575738,2607.3,2607.2,5.17744]
[1723964419320,0.97175738,2607.3,2607.2,5.17744]
[1723964419520,2.47854566,2607.3,2607.2,5.17744]
[1723964420329,0.97175738,2607.3,2607.1,1.34226]
[1723964420526,1.34231,2607.1,2607.0,1.34232]
[1723964420754,7.02289828,2607.1,2607.0,1.34232]
[1723964421039,1.34235,2607.0,2606.9,1.34237]
[1723964421237,1.34235,2607.0,2606.8,0.00575738]
[1723964421238,3.81398847,2607.0,2606.8,0.00575738]
[1723964421419,3.81398847,2607.0,2606.9,1.3424]
[1723964422327,3.81398847,2607.0,2606.8,1.34817738]
[1723964422544,1.50563847,2606.9,2606.8,1.34817738]
[1723964424018,3.81398847,2607.0,2606.8,1.34817738]
[1723964424221,1.50563847,2606.9,2606.8,1.34817738]
[1723964424431,1.50563847,2606.9,2606.8,0.00575738]
[1723964424765,1.3424,2606.9,2606.8,0.00575738]
[1723964425137,1.3424,2606.9,2606.8,1.34820738]
[1723964425424,1.3424,2606.9,2606.8,0.00575738]
[1723964425821,2.97666998,2607.0,2606.8,1.34820738]
[1723964425822,4.31904998,2607.0,2606.8,1.34820738]
[1723964426328,1.50606116,2606.9,2606.8,1.34820738]
[1723964426536,1.50606116,2606.9,2606.8,0.00575738]
[1723964427322,4.31904998,2607.0,2606.8,0.00575738]
[1723964427527,0.3803,2606.9,2606.8,0.00575738]
[1723964427835,1.7227,2606.9,2606.8,0.00575738]
[1723964428027,1.88641245,2606.9,2606.8,1.34820738]
[1723964428228,1.3463,2606.9,2606.8,1.34820738]
[1723964428529,2.85241245,2606.9,2606.8,1.34820738]
[1723964430633,6.06021245,2606.9,2606.8,1.34820738]
[1723964432028,5.09421245,2606.9,2606.8,1.34820738]
[1723964434136,3.5881,2606.9,2606.8,1.34820738]
[1723964435236,5.59876998,2606.9,2606.8,1.34820738]
[1723964435538,3.5881,2606.9,2606.8,1.34820738]
[1723964436331,10.77716998,2606.9,2606.8,0.00575738]
[1723964436532,11.28197779,2606.9,2606.8,0.00575738]
[1723964438045,7.44597779,2606.9,2606.8,0.00575738]
[1723964438749,6.10357779,2606.9,2606.8,0.00575738]
[1723964438940,6.10357779,2606.9,2606.8,1.34820738]
[1723964438941,3.5881,2606.9,2606.8,1.34820738]
[1723964439337,7.4241,2606.9,2606.8,1.34820738]
[1723964439539,3.5881,2606.9,2606.8,1.34820738]
[1723964440242,5.59724046,2606.9,2606.8,1.34820738]
[1723964440444,3.5881,2606.9,2606.8,1.34820738]
[1723964440637,5.59729387,2606.9,2606.8,1.34820738]
[1723964441067,3.5881,2606.9,2606.8,1.34820738]
[1723964441439,5.5972505,2606.9,2606.8,1.34820738]
[1723964441645,4.5541,2606.9,2606.8,1.34820738]
[1723964441948,5.6806613,2606.9,2606.8,1.34820738]
[1723964445093,6.8841505,2606.9,2606.8,1.34820738]
[1723964448853,6.8841505,2606.9,2606.8,0.00575738]
[1723964451340,4.875,2606.9,2606.8,1.34820738]
[1723964451541,6.8841505,2606.9,2606.8,0.00575738]
[1723964452142,4.875,2606.9,2606.8,0.00575738]
[1723964452942,6.8841505,2606.9,2606.8,0.00575738]
[1723964455557,8.2265505,2606.9,2606.8,0.00575738]
[1723964455758,6.2174,2606.9,2606.8,0.00575738]
[1723964456351,11.3958,2606.9,2606.8,0.00575738]
[1723964456952,2.6849,2606.8,2606.7,1e-08]
[1723964457152,7.8444,2606.8,2606.7,1e-08]
[1723964461952,6.50195,2606.8,2606.7,1e-08]
[1723964462154,5.1595,2606.8,2606.7,1e-08]
[1723964462354,6.50195,2606.8,2606.7,1e-08]
[1723964463465,5.1595,2606.8,2606.7,1e-08]
[1723964464658,1.3235,2606.8,2606.7,1e-08]
[1723964465056,1.3235,2606.8,2606.7,1.34250001]
[1723964465658,1.3235,2606.8,2606.7,1e-08]
[1723964466560,2.66595,2606.8,2606.7,1e-08]
[1723964466747,1.3235,2606.8,2606.7,1e-08]
[1723964467064,2.66595,2606.8,2606.7,1e-08]
[1723964470658,1.3235,2606.8,2606.7,1e-08]
[1723964471860,3.83748869,2606.8,2606.7,1.34250001]
[1723964472167,9.01593869,2606.8,2606.7,1e-08]
[1723964472374,6.50195,2606.8,2606.7,1e-08]
[1723964472564,5.1595,2606.8,2606.7,1e-08]
[1723964472797,1.3235,2606.8,2606.7,1e-08]
[1723964473359,2.66595,2606.8,2606.7,1e-08]
[1723964474173,5.17970581,2606.8,2606.7,1e-08]
[1723964474562,3.83725581,2606.8,2606.7,1e-08]
[1723964475083,7.04505581,2606.8,2606.7,1e-08]
[1723964476477,5.87375,2606.8,2606.7,1e-08]
[1723964476967,1.3235,2606.8,2606.7,1e-08]
[1723964477170,4.5313,2606.8,2606.7,1e-08]
[1723964479170,5.87375,2606.8,2606.7,1e-08]
[1723964480068,2.66595,2606.8,2606.7,1e-08]
[1723964480298,5.87375,2606.8,2606.7,1e-08]
[1723964483873,11.0522,2606.8,2606.7,1e-08]
[1723964484172,14.06893706,2606.8,2606.7,1e-08]
[1723964491074,10.86113706,2606.8,2606.7,1e-08]
[1723964491287,14.06893706,2606.8,2606.7,1e-08]
[1723964496480,10.23293706,2606.8,2606.7,1e-08]
[1723964498272,7.2162,2606.8,2606.7,1e-08]
[1723964499571,10.23235791,2606.8,2606.7,1e-08]
[1723964499773,10.23231701,2606.8,2606.7,1e-08]
[1723964505983,10.23260043,2606.8,2606.7,1e-08]
[1723964506172,7.2162,2606.8,2606.7,1e-08]
[1723964506573,10.23258108,2606.8,2606.7,1e-08]
[1723964507582,7.2162,2606.8,2606.7,1e-08]
[1723964507770,10.23242279,2606.8,2606.7,1e-08]
[1723964514682,19.06842279,2606.8,2606.7,1e-08]
[1723964514877,4.02765,2606.6,2606.5,11.86434201]
[1723964515105,8.99734572,2606.6,2606.5,10.5820646]
[1723964515287,17.83414572,2606.6,2606.5,10.5820646]
[1723964515479,17.83414572,2606.6,2605.4,1.00557761]
[1723964515480,1.34312,2605.5,2605.4,0.64557761]
[1723964515714,1.34312,2605.5,2605.0,0.3672]
[1723964515715,1.34329,2605.2,2605.0,0.3672]
[1723964515902,6.68569327,2605.1,2605.0,0.37003238]
[1723964516191,4.1738,2605.1,2605.0,0.37003238]
[1723964516398,6.6819011,2605.1,2605.0,0.37003238]
[1723964516787,5.7159011,2605.1,2605.0,0.37003238]